[Event "NJSK 2021 Jeugd B"]
[Site "Almelo, Netherlands"]
[Date "2021.08.06"]
[Round "6.8"]
[White "Franke, Daniel"]
[Black "Wierenga, Jael"]
[Result "1-0"]
[TimeControl "90min/40moves + 30min + 30sec/move"]
[WhiteElo "1554"]
[BlackElo "1565"]

1. d4 {[%clk 01:30:59]} Nf6 {[%clk 01:30:55]} {[%emt 00:00:06]} 2. c4 {[%clk
01:31:24]} {[%emt 00:00:05]} e6 {[%clk 01:31:20]} {[%emt 00:00:05]} 3. Nf3
{[%clk 01:31:52]} {[%emt 00:00:02]} d5 {[%clk 01:31:39]} {[%emt 00:00:11]} 4.
Nc3 {[%clk 01:32:14]} {[%emt 00:00:08]} Be7 {[%clk 01:32:05]} {[%emt 00:00:04]}
5. Bf4 {[%clk 01:32:41]} {[%emt 00:00:04]} a6 {[%clk 01:32:05]} {[%emt
00:00:29]} 6. e3 {[%clk 01:33:06]} {[%emt 00:00:05]} O-O {[%clk 01:32:08]}
{[%emt 00:00:27]} 7. cxd5 {[%clk 01:32:45]} {[%emt 00:00:52]} exd5 {[%clk
01:30:55]} {[%emt 00:01:42]} 8. Bd3 {[%clk 01:32:49]} {[%emt 00:00:26]} Be6
{[%clk 01:28:41]} {[%emt 00:02:44]} 9. O-O {[%clk 01:32:50]} {[%emt 00:00:30]}
Nbd7 {[%clk 01:26:12]} {[%emt 00:02:59]} 10. Qc2 {[%clk 01:32:40]} {[%emt
00:00:40]} h6 {[%clk 01:26:12]} {[%emt 00:00:30]} 11. Rfc1 {[%clk 01:31:33]}
{[%emt 00:01:37]} Rc8 {[%clk 01:26:04]} {[%emt 00:00:37]} 12. Na4 {[%clk
01:19:33]} {[%emt 00:12:30]} c5 {[%clk 01:06:38]} {[%emt 00:19:56]} 13. Nxc5
{[%clk 01:12:33]} {[%emt 00:07:30]} Nxc5 {[%clk 01:06:14]} {[%emt 00:00:53]} 14.
dxc5 {[%clk 01:12:53]} {[%emt 00:00:11]} Bxc5 {[%clk 01:05:53]} {[%emt
00:00:52]} 15. Qd2 {[%clk 01:12:05]} {[%emt 00:01:18]} Qe7 {[%clk 00:59:47]}
{[%emt 00:06:36]} 16. a3 {[%clk 01:08:11]} {[%emt 00:04:24]} Ne4 {[%clk
00:47:32]} {[%emt 00:12:44]} 17. Qe2 {[%clk 01:05:01]} {[%emt 00:03:40]} Bb6
{[%clk 00:39:22]} {[%emt 00:08:39]} 18. Nd4 {[%clk 00:59:31]} {[%emt 00:06:00]}
g5 {[%clk 00:32:40]} {[%emt 00:07:11]} 19. Bg3 {[%clk 00:57:59]} {[%emt
00:02:03]} Qf6 {[%clk 00:27:02]} {[%emt 00:06:08]} 20. Nxe6 {[%clk 00:46:02]}
{[%emt 00:12:27]} Qxe6 {[%clk 00:26:52]} {[%emt 00:00:39]} 21. Re1 {[%clk
00:45:53]} {[%emt 00:00:39]} Rfe8 {[%clk 00:24:21]} {[%emt 00:03:02]} 22. Rad1
{[%clk 00:41:33]} {[%emt 00:04:50]} Rc6 {[%clk 00:21:28]} {[%emt 00:03:23]} 23.
Bxe4 {[%clk 00:36:59]} {[%emt 00:05:03]} dxe4 {[%clk 00:21:33]} {[%emt
00:00:25]} 24. h3 {[%clk 00:33:56]} {[%emt 00:03:34]} Rec8 {[%clk 00:21:05]}
{[%emt 00:00:58]} 25. Rd2 {[%clk 00:22:02]} {[%emt 00:12:24]} Qb3 {[%clk
00:19:11]} {[%emt 00:02:23]} 26. Red1 {[%clk 00:20:47]} {[%emt 00:01:46]} Ba5
{[%clk 00:13:11]} {[%emt 00:06:30]} 27. Rd5 {[%clk 00:17:18]} {[%emt 00:03:59]}
Bc7 {[%clk 00:11:59]} {[%emt 00:01:42]} 28. Bxc7 {[%clk 00:16:28]} {[%emt
00:01:20]} R8xc7 {[%clk 00:12:19]} {[%emt 00:00:11]} 29. R1d2 {[%clk 00:16:10]}
{[%emt 00:00:48]} Qa2 {[%clk 00:09:13]} {[%emt 00:03:34]} 30. R5d4 {[%clk
00:14:24]} {[%emt 00:02:18]} Qe6 {[%clk 00:08:46]} {[%emt 00:00:57]} 31. Qg4
{[%clk 00:12:37]} {[%emt 00:02:17]} f5 {[%clk 00:04:23]} {[%emt 00:04:54]} 32.
Qg3 {[%clk 00:10:48]} {[%emt 00:02:19]} Kg7 {[%clk 00:04:19]} {[%emt 00:00:34]}
33. h4 {[%clk 00:06:40]} {[%emt 00:04:39]} g4 {[%clk 00:03:38]} {[%emt
00:01:10]} 34. Qf4 {[%clk 00:06:26]} {[%emt 00:00:43]} Qf6 {[%clk 00:01:16]}
{[%emt 00:02:53]} 35. g3 {[%clk 00:06:51]} {[%emt 00:00:05]} Re7 {[%clk
00:00:58]} {[%emt 00:00:48]} 36. Rd6 {[%clk 00:06:16]} {[%emt 00:01:05]} Re6
{[%clk 00:01:16]} {[%emt 00:00:13]} 37. Rd7+ {[%clk 00:06:18]} {[%emt
00:00:28]} Kg6 {[%clk 00:01:07]} {[%emt 00:00:39]} 38. Qb8 {[%clk 00:02:42]}
{[%emt 00:04:06]} b5 {[%clk 00:00:59]} {[%emt 00:00:38]} 39. Qg8+ {[%clk
00:01:36]} {[%emt 00:01:36]} Kh5 {[%clk 00:01:21]} {[%emt 00:00:08]} 40. R2d5
{[%clk 00:00:39]} {[%emt 00:01:28]} b4 {[%clk 00:00:37]} {[%emt 00:01:14]} 41.
Rf7 {[%clk 00:29:33]} {[%emt 00:01:36]} Rc8 {[%clk 00:27:11]} {[%emt 00:03:55]}
42. Rxf5+ {[%clk 00:29:46]} {[%emt 00:00:17]} 1-0

[Event "NJSK 2021 Jeugd B"]
[Site "Almelo, Netherlands"]
[Date "2021.08.07"]
[Round "7.1"]
[White "Achuthan, Dylan"]
[Black "Slagboom, Leandro"]
[Result "1/2-1/2"]
[TimeControl "90min/40moves + 30min + 30sec/move"]
[WhiteElo "1888"]
[BlackElo "1996"]

1. e4 {[%clk 01:30:57]} {[%emt 00:00:03]} c5 {[%clk 01:30:57]} {[%emt
00:00:04]} 2. Nf3 {[%clk 01:31:19]} {[%emt 00:00:08]} d6 {[%clk 01:31:22]}
{[%emt 00:00:05]} 3. Bc4 {[%clk 01:31:44]} {[%emt 00:00:04]} Nf6 {[%clk
01:31:04]} {[%emt 00:00:48]} 4. Qe2 {[%clk 01:32:09]} {[%emt 00:00:05]} a6
{[%clk 01:20:22]} {[%emt 00:11:12]} 5. a4 {[%clk 01:32:27]} {[%emt 00:00:12]}
e6 {[%clk 01:18:28]} {[%emt 00:02:25]} 6. c3 {[%clk 01:32:01]} {[%emt
00:00:56]} d5 {[%clk 01:08:22]} {[%emt 00:10:35]} 7. exd5 {[%clk 01:31:22]}
{[%emt 00:01:09]} Nxd5 {[%clk 01:08:44]} {[%emt 00:00:08]} 8. O-O {[%clk
01:31:42]} {[%emt 00:00:10]} Be7 {[%clk 01:05:24]} {[%emt 00:03:50]} 9. Rd1
{[%clk 01:30:03]} {[%emt 00:02:08]} Nc6 {[%clk 01:00:27]} {[%emt 00:05:28]} 10.
d4 {[%clk 01:28:26]} {[%emt 00:02:07]} O-O {[%clk 00:56:13]} {[%emt 00:04:44]}
11. Na3 {[%clk 01:16:29]} {[%emt 00:12:27]} cxd4 {[%clk 00:48:42]} {[%emt
00:08:01]} 12. Nxd4 {[%clk 01:11:45]} {[%emt 00:05:14]} Qc7 {[%clk 00:42:49]}
{[%emt 00:06:23]} 13. Nac2 {[%clk 01:03:19]} {[%emt 00:08:55]} Nxd4 {[%clk
00:37:57]} {[%emt 00:05:22]} 14. Nxd4 {[%clk 01:00:25]} {[%emt 00:03:24]} Nf6
{[%clk 00:33:43]} {[%emt 00:04:45]} 15. a5 {[%clk 00:53:21]} {[%emt 00:07:34]}
Re8 {[%clk 00:24:06]} {[%emt 00:10:06]} 16. Bg5 {[%clk 00:45:03]} {[%emt
00:08:49]} Bd7 {[%clk 00:22:24]} {[%emt 00:02:11]} 17. Bb3 {[%clk 00:41:04]}
{[%emt 00:04:29]} Nd5 {[%clk 00:17:05]} {[%emt 00:05:50]} 18. Bxe7 {[%clk
00:34:44]} {[%emt 00:06:51]} Nxe7 {[%clk 00:17:24]} {[%emt 00:00:10]} 19. Qe4
{[%clk 00:25:11]} {[%emt 00:10:03]} 1/2-1/2

[Event "NJSK 2021 Jeugd B"]
[Site "Almelo, Netherlands"]
[Date "2021.08.07"]
[Round "7.2"]
[White "Boghossian, Wahe"]
[Black "Kien, Clovis"]
[Result "1/2-1/2"]
[TimeControl "90min/40moves + 30min + 30sec/move"]
[WhiteElo "1915"]
[BlackElo "1683"]

1. e4 {[%clk 01:30:55]} {[%emt 00:00:05]} c5 {[%clk 01:30:57]} {[%emt
00:00:04]} 2. Nf3 {[%clk 01:31:21]} {[%emt 00:00:04]} Nc6 {[%clk 01:31:24]}
{[%emt 00:00:04]} 3. Bc4 {[%clk 01:31:36]} {[%emt 00:00:14]} g6 {[%clk
01:30:07]} {[%emt 00:01:46]} 4. d4 {[%clk 01:31:11]} {[%emt 00:00:55]} cxd4
{[%clk 01:30:30]} {[%emt 00:00:08]} 5. Nxd4 {[%clk 01:31:32]} {[%emt 00:00:08]}
Bg7 {[%clk 01:30:18]} {[%emt 00:00:42]} 6. Be3 {[%clk 01:27:30]} {[%emt
00:04:32]} d6 {[%clk 01:23:14]} {[%emt 00:07:35]} 7. Nc3 {[%clk 01:16:07]}
{[%emt 00:11:52]} Nf6 {[%clk 01:21:29]} {[%emt 00:02:15]} 8. f3 {[%clk
01:14:17]} {[%emt 00:02:20]} O-O {[%clk 01:19:45]} {[%emt 00:02:14]} 9. Qd2
{[%clk 01:13:58]} {[%emt 00:00:49]} a6 {[%clk 01:13:20]} {[%emt 00:06:56]} 10.
O-O {[%clk 01:11:12]} {[%emt 00:03:14]} Bd7 {[%clk 01:10:37]} {[%emt 00:03:15]}
11. Nxc6 {[%clk 01:09:37]} {[%emt 00:02:04]} Bxc6 {[%clk 01:02:44]} {[%emt
00:08:23]} 12. a4 {[%clk 00:55:11]} {[%emt 00:14:57]} Nd7 {[%clk 00:59:23]}
{[%emt 00:03:51]} 13. Bd4 {[%clk 00:53:41]} {[%emt 00:01:59]} Ne5 {[%clk
00:50:23]} {[%emt 00:09:30]} 14. Bb3 {[%clk 00:49:31]} {[%emt 00:04:34]} b5
{[%clk 00:34:22]} {[%emt 00:16:38]} 15. axb5 {[%clk 00:41:13]} {[%emt
00:08:48]} Bxb5 {[%clk 00:28:44]} {[%emt 00:06:08]} 16. Nxb5 {[%clk 00:25:59]}
{[%emt 00:15:43]} axb5 {[%clk 00:28:59]} {[%emt 00:00:16]} 17. f4 {[%clk
00:21:29]} {[%emt 00:04:59]} Nc6 {[%clk 00:28:45]} {[%emt 00:00:44]} 18. Bxg7
{[%clk 00:21:21]} {[%emt 00:00:38]} Qb6+ {[%clk 00:28:42]} {[%emt 00:00:34]} 19.
Qf2 {[%clk 00:10:13]} {[%emt 00:11:37]} Qxf2+ {[%clk 00:29:07]} {[%emt
00:00:05]} 20. Kxf2 {[%clk 00:10:35]} {[%emt 00:00:07]} Kxg7 {[%clk 00:29:32]}
{[%emt 00:00:06]} 21. Rad1 {[%clk 00:08:20]} {[%emt 00:02:45]} Na5 {[%clk
00:27:04]} {[%emt 00:02:58]} 22. Bd5 {[%clk 00:07:17]} {[%emt 00:01:33]} Rac8
{[%clk 00:27:31]} {[%emt 00:00:03]} 23. c3 {[%clk 00:07:12]} {[%emt 00:00:36]}
Nc4 {[%clk 00:25:35]} {[%emt 00:02:26]} 24. Bxc4 {[%clk 00:05:21]} {[%emt
00:02:20]} bxc4 {[%clk 00:24:30]} {[%emt 00:01:35]} 25. Rd4 {[%clk 00:04:58]}
{[%emt 00:00:52]} Rc5 {[%clk 00:24:04]} {[%emt 00:00:58]} 26. Ke3 {[%clk
00:03:11]} {[%emt 00:02:16]} Rb8 {[%clk 00:24:15]} {[%emt 00:00:20]} 27. Rb1
{[%clk 00:03:29]} {[%emt 00:00:11]} Rbb5 {[%clk 00:22:08]} {[%emt 00:02:38]} 28.
g3 {[%clk 00:02:35]} {[%emt 00:01:23]} Kf6 {[%emt 00:01:07]} 29. h4 {[%clk
00:02:23]} {[%emt 00:00:43]} h5 {[%clk 00:21:19]} {[%emt 00:00:42]} 30. Rd2
{[%clk 00:02:12]} {[%emt 00:00:41]} Ra5 {[%clk 00:14:50]} {[%emt 00:06:59]} 31.
Rd4 {[%clk 00:02:09]} {[%emt 00:00:32]} Ra2 {[%clk 00:13:15]} {[%emt 00:02:05]}
32. Kd2 {[%clk 00:02:30]} {[%emt 00:00:08]} Ke6 {[%clk 00:10:52]} {[%emt
00:02:55]} 33. Kc2 {[%clk 00:02:28]} {[%emt 00:00:32]} f6 {[%clk 00:08:58]}
{[%emt 00:02:24]} 1/2-1/2

[Event "NJSK 2021 Jeugd B"]
[Site "Almelo, Netherlands"]
[Date "2021.08.07"]
[Round "7.3"]
[White "Goudriaan, Rafael"]
[Black "Yeh, Timo"]
[Result "0-1"]
[TimeControl "90min/40moves + 30min + 30sec/move"]
[WhiteElo "1677"]
[BlackElo "1819"]

1. d4 {[%clk 01:30:58]} {[%emt 00:00:02]} d5 {[%clk 01:30:57]} {[%emt
00:00:04]} 2. c4 {[%clk 01:31:24]} {[%emt 00:00:04]} e6 {[%clk 01:31:25]}
{[%emt 00:00:02]} 3. g3 {[%clk 01:31:47]} {[%emt 00:00:07]} Nf6 {[%clk
01:31:52]} {[%emt 00:00:03]} 4. Bg2 {[%clk 01:32:04]} {[%emt 00:00:11]} Bb4+
{[%clk 01:32:10]} {[%emt 00:00:14]} 5. Bd2 {[%clk 01:32:26]} {[%emt 00:00:08]}
Be7 {[%clk 01:32:36]} {[%emt 00:00:04]} 6. Nf3 {[%clk 01:32:34]} {[%emt
00:00:22]} c6 {[%clk 01:33:02]} {[%emt 00:00:04]} 7. Qc2 {[%clk 01:30:48]}
{[%emt 00:02:15]} O-O {[%clk 01:33:25]} {[%emt 00:00:08]} 8. O-O {[%clk
01:31:12]} {[%emt 00:00:06]} Ne4 {[%clk 01:33:24]} {[%emt 00:00:31]} 9. Nc3
{[%clk 01:29:31]} {[%emt 00:02:10]} f5 {[%clk 01:33:18]} {[%emt 00:00:36]} 10.
e3 {[%clk 01:20:45]} {[%emt 00:09:16]} Nd7 {[%clk 01:33:21]} {[%emt 00:00:27]}
11. Ne1 {[%clk 01:18:32]} {[%emt 00:02:44]} b6 {[%clk 01:28:06]} {[%emt
00:05:45]} 12. f3 {[%clk 01:14:36]} {[%emt 00:04:24]} Nxd2 {[%clk 01:28:33]}
{[%emt 00:00:05]} 13. Qxd2 {[%clk 01:15:00]} {[%emt 00:00:06]} Ba6 {[%clk
01:29:01]} {[%emt 00:00:02]} 14. b3 {[%clk 01:14:25]} {[%emt 00:01:04]} dxc4
{[%clk 01:29:23]} {[%emt 00:00:10]} 15. bxc4 {[%clk 01:14:35]} {[%emt
00:00:19]} Bxc4 {[%clk 01:29:48]} {[%emt 00:00:06]} 16. Nd3 {[%clk 01:12:36]}
{[%emt 00:02:28]} Nf6 {[%clk 01:29:43]} {[%emt 00:00:35]} 17. Rfc1 {[%clk
01:12:31]} {[%emt 00:00:32]} Bxd3 {[%clk 01:27:09]} {[%emt 00:03:07]} 18. Qxd3
{[%clk 01:12:59]} {[%emt 00:00:02]} Qd7 {[%clk 01:27:04]} {[%emt 00:00:35]} 19.
Ne2 {[%clk 01:11:53]} {[%emt 00:01:35]} Rac8 {[%clk 01:23:22]} {[%emt
00:04:12]} 20. e4 {[%clk 01:07:06]} {[%emt 00:05:17]} Rfd8 {[%clk 01:22:41]}
{[%emt 00:01:12]} 21. Qb3 {[%clk 01:06:44]} {[%emt 00:00:51]} Kh8 {[%clk
01:22:41]} {[%emt 00:00:30]} 22. Kh1 {[%clk 01:06:00]} {[%emt 00:01:15]} c5
{[%clk 01:20:41]} {[%emt 00:02:29]} 23. Nf4 {[%clk 01:05:51]} {[%emt 00:00:38]}
cxd4 {[%clk 01:19:18]} {[%emt 00:01:54]} 24. Nxe6 {[%clk 01:05:48]} {[%emt
00:00:33]} Rxc1+ {[%clk 01:19:21]} {[%emt 00:00:29]} 25. Rxc1 {[%clk 01:06:09]}
{[%emt 00:00:08]} Rc8 {[%clk 01:19:33]} {[%emt 00:00:18]} 26. Rd1 {[%clk
01:05:57]} {[%emt 00:00:39]} d3 {[%clk 01:19:21]} {[%emt 00:00:45]} 27. Ng5
{[%clk 01:03:59]} {[%emt 00:02:23]} h6 {[%clk 01:18:59]} {[%emt 00:00:56]} 28.
Nf7+ {[%clk 01:04:18]} {[%emt 00:00:12]} Kh7 {[%clk 01:19:27]} {[%emt
00:00:01]} 29. Ne5 {[%clk 01:04:23]} {[%emt 00:00:23]} Qd4 {[%clk 01:17:06]}
{[%emt 00:02:53]} 30. Nxd3 {[%clk 01:03:07]} {[%emt 00:01:46]} fxe4 {[%clk
01:13:49]} {[%emt 00:03:47]} 31. fxe4 {[%clk 01:03:14]} {[%emt 00:00:24]} Rc3
{[%clk 01:09:35]} {[%emt 00:04:44]} 32. Qb5 {[%clk 01:00:48]} {[%emt 00:02:56]}
Bc5 {[%clk 01:09:55]} {[%emt 00:00:10]} 33. e5 {[%clk 00:55:01]} {[%emt
00:06:16]} Ng4 {[%clk 00:40:51]} {[%emt 00:29:34]} 34. Qc6 {[%clk 00:52:04]}
{[%emt 00:03:25]} Rc4 {[%clk 00:40:23]} {[%emt 00:01:00]} 35. Rf1 {[%clk
00:46:36]} {[%emt 00:05:55]} Qxd3 {[%clk 00:39:13]} {[%emt 00:01:44]} 36. Bh3
{[%clk 00:45:58]} {[%emt 00:01:07]} Nf2+ {[%clk 00:37:37]} {[%emt 00:02:06]} 37.
Kg2 {[%clk 00:46:15]} {[%emt 00:00:13]} Nxh3 {[%clk 00:37:52]} {[%emt
00:00:15]} 0-1

[Event "NJSK 2021 Jeugd B"]
[Site "Almelo, Netherlands"]
[Date "2021.08.07"]
[Round "7.4"]
[White "Van Kuijk, Vadim"]
[Black "Groen, Jari"]
[Result "1-0"]
[TimeControl "90min/40moves + 30min + 30sec/move"]
[WhiteElo "1722"]
[BlackElo "1423"]

1. d4 {[%clk 01:28:46]} {[%emt 00:02:29]} Nf6 {[%clk 01:28:36]} 2. c4 {[%clk
01:27:56]} e6 {[%clk 01:28:34]} 3. g3 {[%clk 01:27:32]} d5 {[%clk 01:27:37]} 4.
Nc3 Be7 {[%clk 01:24:01]} {[%emt 00:01:36]} 5. Bg2 {[%clk 01:25:15]} {[%emt
00:02:23]} O-O {[%clk 01:16:44]} {[%emt 00:07:48]} 6. Nf3 {[%clk 01:23:45]}
{[%emt 00:01:58]} dxc4 {[%clk 01:14:06]} {[%emt 00:03:09]} 7. Qa4 {[%clk
01:09:32]} {[%emt 00:14:43]} Bd7 {[%clk 01:09:59]} {[%emt 00:04:37]} 8. Qxc4
{[%clk 01:07:48]} {[%emt 00:02:14]} Bc6 {[%clk 01:09:19]} {[%emt 00:01:10]} 9.
O-O {[%clk 01:06:34]} {[%emt 00:01:43]} Nbd7 {[%clk 00:53:00]} {[%emt
00:16:51]} 10. Re1 {[%clk 01:02:08]} {[%emt 00:04:56]} Nb6 {[%clk 00:44:31]}
{[%emt 00:08:59]} 11. Qd3 {[%clk 00:59:11]} {[%emt 00:03:26]} Nfd5 {[%clk
00:43:38]} {[%emt 00:01:22]} 12. e4 {[%clk 00:58:47]} {[%emt 00:00:54]} Nxc3
{[%clk 00:43:26]} {[%emt 00:00:44]} 13. bxc3 {[%clk 00:58:46]} {[%emt
00:00:30]} a6 {[%clk 00:42:06]} {[%emt 00:01:50]} 14. h4 {[%clk 00:52:40]}
{[%emt 00:06:36]} Bb5 {[%clk 00:39:15]} {[%emt 00:03:21]} 15. Qb1 {[%clk
00:50:50]} {[%emt 00:02:20]} c5 {[%clk 00:34:52]} {[%emt 00:04:54]} 16. e5
{[%clk 00:45:07]} {[%emt 00:06:12]} Bc6 {[%clk 00:29:07]} {[%emt 00:06:16]} 17.
Ng5 {[%clk 00:35:45]} {[%emt 00:09:51]} Bxg5 {[%clk 00:28:08]} {[%emt
00:01:29]} 18. Bxg5 {[%clk 00:35:54]} {[%emt 00:00:21]} Qc7 {[%clk 00:24:04]}
{[%emt 00:04:34]} 19. Bxc6 {[%clk 00:22:53]} {[%emt 00:13:30]} Qxc6 {[%clk
00:23:49]} {[%emt 00:00:45]} 20. Re4 {[%clk 00:21:08]} {[%emt 00:02:16]} Nd5
{[%clk 00:20:49]} {[%emt 00:03:31]} 21. Qd3 {[%clk 00:17:12]} {[%emt 00:04:26]}
c4 {[%clk 00:14:31]} {[%emt 00:06:47]} 22. Qc2 {[%clk 00:10:12]} {[%emt
00:07:29]} Nxc3 {[%clk 00:14:00]} {[%emt 00:01:02]} 23. Rf4 {[%clk 00:08:06]}
{[%emt 00:02:37]} Nd5 {[%clk 00:13:09]} {[%emt 00:01:20]} 24. Kh2 {[%clk
00:07:06]} {[%emt 00:01:30]} Nxf4 {[%clk 00:08:10]} {[%emt 00:05:30]} 25. gxf4
{[%clk 00:07:18]} {[%emt 00:00:18]} f6 {[%clk 00:06:57]} {[%emt 00:01:43]} 26.
exf6 {[%clk 00:07:00]} {[%emt 00:00:47]} gxf6 {[%clk 00:06:17]} {[%emt
00:01:10]} 27. Bh6 {[%clk 00:07:12]} {[%emt 00:00:18]} Rf7 {[%clk 00:06:17]}
{[%emt 00:00:30]} 28. Rg1+ {[%clk 00:06:59]} {[%emt 00:00:43]} Kh8 {[%clk
00:06:23]} {[%emt 00:00:23]} 29. Qc3 {[%clk 00:06:39]} {[%emt 00:00:51]} Rg8
{[%clk 00:03:08]} {[%emt 00:03:46]} 30. Rxg8+ {[%clk 00:07:04]} {[%emt
00:00:04]} Kxg8 {[%clk 00:03:34]} {[%emt 00:00:04]} 31. Qg3+ {[%clk 00:07:27]}
{[%emt 00:00:07]} Kh8 {[%clk 00:03:54]} {[%emt 00:00:09]} 32. f5 {[%clk
00:07:48]} {[%emt 00:00:10]} Qe8 {[%clk 00:00:32]} {[%emt 00:03:52]} 33. fxe6
{[%clk 00:08:05]} {[%emt 00:00:13]} Re7 {[%clk 00:00:43]} {[%emt 00:00:19]} 34.
d5 {[%clk 00:07:52]} {[%emt 00:00:42]} Qg8 {[%clk 00:00:49]} {[%emt 00:00:24]}
35. Qxg8+ {[%clk 00:04:38]} {[%emt 00:03:45]} Kxg8 {[%clk 00:01:16]} {[%emt
00:00:03]} 36. Kg3 {[%clk 00:04:35]} {[%emt 00:00:33]} b5 {[%clk 00:00:50]}
{[%emt 00:00:57]} 37. Kf4 {[%clk 00:04:14]} {[%emt 00:00:50]} Rg7 {[%clk
00:00:42]} {[%emt 00:00:38]} 38. Bxg7 {[%clk 00:02:27]} {[%emt 00:02:17]} Kxg7
{[%clk 00:01:05]} {[%emt 00:00:08]} 39. d6 {[%clk 00:02:36]} {[%emt 00:00:21]}
Kf8 {[%clk 00:00:46]} {[%emt 00:00:49]} 40. Kf5 {[%clk 00:02:43]} {[%emt
00:00:22]} c3 {[%clk 00:00:38]} {[%emt 00:00:39]} 41. Kxf6 {[%clk 00:02:59]}
{[%emt 00:00:13]} Ke8 {[%clk 00:29:00]} {[%emt 00:02:08]} 42. e7 {[%clk
00:32:57]} {[%emt 00:00:31]} c2 {[%clk 00:28:59]} {[%emt 00:00:32]} 43. Ke6
{[%clk 00:33:21]} {[%emt 00:00:05]} 1-0

[Event "NJSK 2021 Jeugd B"]
[Site "Almelo, Netherlands"]
[Date "2021.08.07"]
[Round "7.5"]
[White "Aarts, Joaquin"]
[Black "Shadrin, Mitia"]
[Result "0-1"]
[TimeControl "90min/40moves + 30min + 30sec/move"]
[WhiteElo "1736"]
[BlackElo "1698"]

1. d4 {[%clk 01:30:56]} {[%emt 00:00:32]} d5 {[%clk 01:30:58]} 2. c4 {[%clk
01:31:20]} e6 {[%clk 01:31:22]} 3. Nf3 {[%clk 01:31:48]} Nf6 {[%clk 01:31:47]}
4. Nc3 {[%clk 01:32:14]} c6 {[%clk 01:31:56]} 5. cxd5 {[%clk 01:32:34]} exd5
{[%clk 01:32:21]} 6. Bg5 {[%clk 01:33:01]} Be7 {[%clk 01:32:45]} 7. Qc2 {[%clk
01:33:25]} h6 {[%clk 01:31:08]} 8. Bh4 {[%clk 01:32:40]} O-O {[%clk 01:30:39]}
9. e3 {[%clk 01:33:08]} Bg4 {[%clk 01:29:00]} 10. Ne5 {[%clk 01:33:32]} Bh5
{[%clk 01:29:19]} 11. Bd3 {[%clk 01:32:22]} Nbd7 12. Nxd7 {[%clk 01:31:56]}
{[%emt 00:00:22]} Nxd7 {[%clk 01:28:02]} {[%emt 00:00:20]} 13. Bxe7 {[%emt
00:00:41]} Qxe7 {[%emt 00:00:06]} 14. O-O {[%clk 01:31:22]} {[%emt 00:00:16]}
Qg5 {[%clk 01:25:21]} {[%emt 00:03:10]} 15. Ne2 {[%clk 01:31:23]} {[%emt
00:00:32]} Bxe2 {[%clk 01:24:30]} {[%emt 00:01:21]} 16. Bxe2 {[%clk 01:31:47]}
{[%emt 00:00:07]} f5 {[%clk 01:24:22]} {[%emt 00:00:37]} 17. g3 {[%clk
01:29:52]} {[%emt 00:02:26]} Rae8 {[%clk 01:20:07]} {[%emt 00:04:44]} 18. h4
{[%clk 01:25:42]} {[%emt 00:04:40]} Qf6 {[%clk 01:20:04]} {[%emt 00:00:34]} 19.
Qd3 {[%clk 01:24:39]} {[%emt 00:01:33]} g5 {[%clk 01:17:31]} {[%emt 00:03:02]}
20. hxg5 {[%clk 01:13:23]} {[%emt 00:11:46]} hxg5 {[%clk 01:17:55]} {[%emt
00:00:07]} 21. Kg2 {[%clk 00:57:59]} {[%emt 00:15:54]} Re7 {[%clk 01:17:43]}
{[%emt 00:00:41]} 22. f4 {[%clk 00:38:14]} {[%emt 00:20:16]} g4 {[%clk
01:16:55]} {[%emt 00:01:17]} 23. Rae1 {[%clk 00:38:07]} {[%emt 00:00:37]} Qe6
{[%clk 01:14:01]} {[%emt 00:03:21]} 24. Bd1 {[%clk 00:36:33]} {[%emt 00:02:07]}
Nf6 {[%clk 01:13:47]} {[%emt 00:00:44]} 25. Bc2 {[%clk 00:35:12]} {[%emt
00:01:50]} Ne4 {[%clk 01:13:34]} {[%emt 00:00:44]} 26. Qd1 {[%clk 00:34:27]}
{[%emt 00:01:15]} Rff7 {[%clk 01:09:20]} {[%emt 00:04:44]} 27. Rh1 {[%clk
00:32:01]} {[%emt 00:02:56]} Rh7 {[%clk 01:09:42]} {[%emt 00:00:08]} 28. Rxh7
{[%clk 00:26:42]} {[%emt 00:05:49]} Rxh7 {[%clk 01:10:04]} {[%emt 00:00:08]} 29.
Rh1 {[%clk 00:27:05]} {[%emt 00:00:07]} Rxh1 {[%clk 01:10:01]} {[%emt
00:00:33]} 30. Qxh1 {[%clk 00:27:27]} {[%emt 00:00:09]} Nxg3 {[%clk 01:09:45]}
{[%emt 00:00:45]} 31. Kxg3 {[%clk 00:24:22]} {[%emt 00:03:35]} Qxe3+ {[%clk
01:10:08]} {[%emt 00:00:07]} 32. Kh4 {[%clk 00:24:01]} {[%emt 00:00:50]} Qxf4
{[%clk 01:09:32]} {[%emt 00:01:07]} 33. Qe1 {[%clk 00:16:20]} {[%emt 00:08:10]}
Kf7 {[%clk 01:09:46]} {[%emt 00:00:15]} 34. Qa5 {[%clk 00:14:51]} {[%emt
00:02:01]} Kg6 {[%clk 01:09:36]} {[%emt 00:03:15]} 0-1